bitfinex/quotes_BTCUSD_20250225
["timestamp","ask_amount","ask_price","bid_price","bid_amount"]
[1740527372058,0.16942762,89045.0,89044.0,0.002]
[1740527372236,0.168466,89039.0,89026.0,0.3291]
[1740527372437,0.168464,89040.0,89026.0,0.3331]
[1740527372843,0.168464,89040.0,89035.0,0.0016938]
[1740527373083,0.00097362,89045.0,89035.0,0.0016938]
[1740527373298,0.168458,89043.0,89035.0,0.0016938]
[1740527373517,0.00097362,89045.0,89035.0,0.0016938]
[1740527373723,0.168466,89039.0,89035.0,0.0016938]
[1740527373897,0.168468,89038.0,89035.0,0.0016938]
[1740527374045,0.168469,89037.0,89035.0,0.0046938]
[1740527374244,0.168468,89038.0,89035.0,0.0046938]
[1740527374441,0.168468,89038.0,89035.0,0.0016938]
[1740527374688,0.00097362,89045.0,89035.0,0.0016938]
[1740527374847,0.16942762,89045.0,89044.0,0.001]
[1740527375178,0.00097362,89045.0,89035.0,0.0026938]
[1740527375339,0.168471,89036.0,89035.0,0.0026938]
[1740527375542,0.168471,89036.0,89035.0,0.0056938]
[1740527375797,0.00097362,89045.0,89035.0,0.0056938]
[1740527375973,0.168466,89039.0,89035.0,0.0056938]
[1740527376175,0.00097362,89045.0,89035.0,0.0046938]
[1740527376584,0.168465,89039.0,89035.0,0.0046938]
[1740527376785,0.224617,89041.0,89035.0,0.0046938]
[1740527376989,0.19662717,89042.0,89035.0,0.0016938]
[1740527377186,0.19662717,89042.0,89035.0,0.0046938]
[1740527377412,0.168465,89040.0,89035.0,0.0046938]
[1740527377778,0.168465,89040.0,89035.0,0.0016938]
[1740527377966,0.00097362,89045.0,89035.0,0.0046938]
[1740527378168,0.168458,89043.0,89035.0,0.0076938]
[1740527378368,0.168456,89044.0,89035.0,0.0076938]
[1740527378581,0.16942762,89045.0,89035.0,0.0046938]
[1740527378780,0.00097362,89045.0,89035.0,0.0076938]
[1740527378988,0.168462,89041.0,89035.0,0.0076938]
[1740527379180,0.22557962,89045.0,89035.0,0.0046938]
[1740527379381,0.168463,89040.0,89035.0,0.0066938]
[1740527379589,0.00097362,89045.0,89035.0,0.0046938]
[1740527379795,0.168462,89041.0,89035.0,0.0046938]
[1740527379996,0.168462,89041.0,89035.0,0.0026938]
[1740527380429,0.16846,89042.0,89035.0,0.0036938]
[1740527380731,0.168458,89043.0,89035.0,0.0026938]
[1740527380945,0.168456,89044.0,89035.0,0.0026938]
[1740527381080,0.168456,89044.0,89035.0,0.0056938]
[1740527381315,0.168456,89044.0,89035.0,0.0046938]
[1740527382213,0.168456,89044.0,89035.0,0.0056938]
[1740527382417,0.16942762,89045.0,89035.0,0.0026938]
[1740527382639,0.16942762,89045.0,89035.0,0.0046938]
[1740527382974,0.00097362,89045.0,89035.0,0.0046938]
[1740527383173,0.00097362,89045.0,89035.0,0.0026938]
[1740527383318,0.16942762,89045.0,89035.0,0.0026938]
[1740527383519,0.16942762,89045.0,89035.0,0.0036938]
[1740527383935,0.16942762,89045.0,89035.0,0.0026938]
[1740527384130,0.16942762,89045.0,89035.0,0.0036938]
[1740527384350,0.00097362,89045.0,89035.0,0.0026938]
[1740527384718,0.00097362,89045.0,89035.0,0.0036938]
[1740527389176,0.224612,89043.0,89035.0,0.0036938]
[1740527389385,0.168463,89040.0,89035.0,0.0026938]
[1740527389584,0.168462,89041.0,89035.0,0.0016938]
[1740527389757,0.168462,89041.0,89035.0,0.0026938]
[1740527390146,0.168462,89041.0,89035.0,0.0016938]
[1740527390355,0.16846,89042.0,89035.0,0.0026938]
[1740527390779,0.16846,89042.0,89035.0,0.0036938]
[1740527390982,0.168457,89044.0,89035.0,0.0036938]
[1740527391515,0.168459,89043.0,89035.0,0.0026938]
[1740527391678,0.168457,89044.0,89035.0,0.0016938]
[1740527391884,0.168458,89043.0,89035.0,0.0016938]
[1740527392085,0.16846,89042.0,89035.0,0.0076938]
[1740527392466,0.16846,89042.0,89035.0,0.0016938]
[1740527392828,0.16846,89042.0,89035.0,0.0046938]
[1740527392951,0.00097362,89045.0,89035.0,0.0046938]
[1740527393321,0.168469,89037.0,89035.0,0.0036938]
[1740527393452,0.00097362,89045.0,89035.0,0.0036938]
[1740527393453,0.168465,89039.0,89035.0,0.0036938]
[1740527393711,0.168465,89039.0,89035.0,0.0056938]
[1740527394072,0.224614,89042.0,89035.0,0.0036938]
[1740527394397,0.168471,89036.0,89035.0,0.0036938]
[1740527394749,0.168471,89036.0,89035.0,0.0056938]
[1740527394961,0.22659571,89036.0,89012.0,0.0754]
[1740527395158,0.22463,89036.0,89012.0,0.0754]
[1740527395392,0.168499,89022.0,89012.0,0.0754]
[1740527395558,0.22466,89024.0,89012.0,0.0754]
[1740527395880,0.00097362,89045.0,89013.0,0.00157265]
[1740527396081,0.00196564,89044.0,89013.0,0.3251]
[1740527396281,0.00196564,89044.0,89014.0,0.224683]
[1740527396481,0.00196564,89044.0,89015.0,0.00157251]
[1740527396660,0.224631,89035.0,89015.0,0.00157251]
[1740527396869,0.224631,89035.0,89017.0,0.168505]
[1740527397071,0.224631,89035.0,89018.0,0.00157251]
[1740527397281,0.22461,89043.0,89018.0,0.00157251]
[1740527397596,0.168473,89035.0,89019.0,0.168501]
[1740527398176,0.224617,89041.0,89018.0,0.00157251]
[1740527398385,0.168469,89037.0,89020.0,0.168499]
[1740527398988,0.168469,89037.0,89021.0,0.168499]
[1740527399390,0.002,89041.0,89029.0,0.168483]
[1740527399600,0.002,89041.0,89032.0,0.168477]
[1740527399941,0.002,89041.0,89030.0,0.00157236]
[1740527400141,0.001,89037.0,89031.0,0.168479]
[1740527400317,0.001,89037.0,89031.0,0.17005132]
[1740527400541,0.001,89037.0,89022.0,0.3251]
[1740527401075,0.001,89037.0,89025.0,0.224655]
[1740527401260,0.001,89037.0,89031.0,0.168478]
[1740527401557,0.00097362,89045.0,89030.0,0.16848]
[1740527401770,0.00097362,89045.0,89032.0,0.002]
[1740527402177,0.168459,89043.0,89026.0,0.16849]
[1740527402582,0.168459,89043.0,89031.0,0.004]
[1740527402982,0.16942862,89045.0,89028.0,0.168484]
[1740527403147,0.00097362,89045.0,89022.0,0.3251]
[1740527403351,0.00097362,89045.0,89027.0,0.22465]
[1740527403565,0.00097362,89045.0,89031.0,0.168479]
[1740527404264,0.00097362,89045.0,89032.0,0.168478]
[1740527404431,0.00097362,89045.0,89031.0,0.168479]
[1740527404634,0.00097362,89045.0,89032.0,0.1700493]
[1740527405909,0.00097362,89045.0,89029.0,0.168483]
[1740527406260,0.00097362,89045.0,89032.0,0.168478]
[1740527406467,0.00097362,89045.0,89033.0,0.168476]
[1740527407806,0.00097362,89045.0,89034.0,0.0015723]
[1740527408015,0.00097362,89045.0,89031.0,0.0016966]
[1740527408395,0.168478,89032.0,89031.0,0.0016966]
[1740527408595,0.1704437,89032.0,89031.0,0.0016966]
[1740527409279,0.168478,89032.0,89031.0,0.0016966]
[1740527409490,0.168478,89032.0,89031.0,0.0036966]
[1740527410680,0.170478,89032.0,89031.0,0.0036966]
[1740527410887,0.224632,89035.0,89031.0,0.0016966]
[1740527411162,0.002,89032.0,89031.0,0.0016966]
[1740527412067,0.00097362,89045.0,89031.0,0.0016966]
[1740527412306,0.003,89035.0,89031.0,0.0016966]
[1740527412849,0.00097362,89045.0,89031.0,0.0016966]
[1740527413054,0.168478,89032.0,89031.0,0.0016966]
[1740527413654,0.17044363,89032.0,89031.0,0.0016966]
[1740527413845,0.168478,89032.0,89031.0,0.0016966]
[1740527414790,0.001,89032.0,89031.0,0.0016966]
[1740527415182,0.003,89032.0,89031.0,0.0016966]
[1740527415361,0.001,89032.0,89031.0,0.0016966]
[1740527415709,0.003,89032.0,89031.0,0.0016966]
[1740527416293,0.171478,89032.0,89031.0,0.0016966]
[1740527416514,0.002,89032.0,89031.0,0.0016966]
[1740527416961,0.003,89032.0,89031.0,0.0016966]
[1740527417164,0.168475,89034.0,89031.0,0.0016966]
[1740527417380,0.169478,89032.0,89031.0,0.0016966]
[1740527417575,0.002,89032.0,89031.0,0.0016966]
[1740527417777,0.170478,89032.0,89031.0,0.0016966]
[1740527418097,0.168478,89032.0,89031.0,0.0016966]
[1740527420015,0.169478,89032.0,89031.0,0.0016966]
[1740527420274,0.170478,89032.0,89031.0,0.0016966]
[1740527420645,0.169478,89032.0,89031.0,0.0016966]
[1740527420944,0.170478,89032.0,89031.0,0.0016966]
[1740527421143,0.169478,89032.0,89031.0,0.0016966]
[1740527421698,0.168478,89032.0,89031.0,0.0016966]
[1740527423720,0.169478,89032.0,89031.0,0.0016966]
[1740527424151,0.168478,89032.0,89031.0,0.0016966]
[1740527424348,0.169478,89032.0,89031.0,0.0016966]
[1740527424619,0.001,89032.0,89031.0,0.0016966]
[1740527424823,0.002,89032.0,89031.0,0.0509966]
[1740527425450,0.001,89032.0,89031.0,0.0509966]
[1740527425655,0.002,89032.0,89031.0,0.0509966]
[1740527425859,0.001,89032.0,89031.0,0.0509966]
[1740527426326,0.001,89032.0,89031.0,0.0529966]
[1740527426541,0.001,89032.0,89031.0,0.0509966]
[1740527426762,0.001,89032.0,89031.0,0.0549966]
[1740527426974,0.0008483,89037.0,89031.0,0.0549966]
[1740527427164,0.0008483,89037.0,89031.0,0.0579966]
[1740527427627,0.168476,89034.0,89031.0,0.0549966]
[1740527428050,0.168477,89033.0,89031.0,0.0589966]
[1740527428269,0.168472,89036.0,89031.0,0.0589966]
[1740527428488,0.168472,89036.0,89031.0,0.0549966]
[1740527428684,0.0008483,89037.0,89031.0,0.0549966]
[1740527428910,0.168473,89035.0,89031.0,0.0579966]
[1740527429086,0.168473,89035.0,89031.0,0.0539966]
[1740527429288,0.0008483,89037.0,89031.0,0.0539966]
[1740527429490,0.0008483,89037.0,89032.0,0.00157228]
[1740527430087,0.0008483,89037.0,89031.0,0.0559966]
[1740527430294,0.0008484,89033.0,89031.0,0.0559966]
[1740527430639,0.0008484,89033.0,89031.0,0.0539966]
[1740527431072,0.0008484,89033.0,89032.0,0.002]
[1740527431993,0.0008484,89033.0,89032.0,0.01027335]
[1740527432335,0.0008484,89033.0,89032.0,0.00827335]
[1740527432934,0.0008484,89033.0,89032.0,0.01127335]
[1740527433138,0.0008484,89033.0,89032.0,0.01527335]
[1740527441988,0.0008484,89033.0,89032.0,0.01800724]
[1740527442919,0.0008484,89033.0,89032.0,0.01970404]
[1740527443914,0.1693244,89033.0,89032.0,0.01970404]
[1740527445646,0.1693244,89033.0,89032.0,0.0086968]
[1740527449581,0.1693244,89033.0,89032.0,0.0046968]
[1740527449816,0.17129002,89033.0,89032.0,0.0046968]
[1740527449981,0.2466244,89033.0,89032.0,0.0016968]
[1740527450596,0.35503312,89033.0,89032.0,0.0016968]
[1740527450791,0.40103312,89033.0,89032.0,0.0016968]
[1740527451225,0.40303312,89033.0,89032.0,0.0016968]
[1740527451601,0.40103312,89033.0,89032.0,0.0016968]
[1740527451809,0.40303312,89033.0,89032.0,0.0016968]
[1740527452008,0.40803312,89033.0,89032.0,0.0026968]
[1740527452227,0.053,89033.0,89032.0,0.0026968]
[1740527452410,0.06096601,89033.0,89032.0,0.0036968]
[1740527453151,0.22944201,89033.0,89032.0,0.0036968]
[1740527453328,0.222476,89033.0,89032.0,0.0026968]
[1740527453671,0.228476,89033.0,89032.0,0.0036968]
[1740527454480,0.2293244,89033.0,89032.0,0.0036968]
[1740527455044,0.32495182,89033.0,89032.0,0.0036968]
[1740527455240,0.38165182,89033.0,89032.0,0.0036968]
[1740527455440,0.168529,89005.0,89004.0,0.3251]
[1740527455662,0.168546,88996.0,88995.0,0.075]
[1740527455979,0.22469,89012.0,88995.0,0.075]
[1740527456287,0.168533,89004.0,88995.0,0.075]
[1740527456463,0.168533,89003.0,88995.0,0.075]
[1740527456858,0.168532,89004.0,88995.0,0.075]
[1740527457061,0.168534,89003.0,88995.0,0.075]
[1740527457263,0.1792483,89037.0,88995.0,0.075]
[1740527457460,0.168537,89002.0,88995.0,0.075]
[1740527458115,0.001,88996.0,88995.0,0.086]
[1740527458481,0.001,88996.0,88995.0,0.082]
[1740527458680,0.4500613,89045.0,88995.0,0.075]
[1740527458859,0.168529,89006.0,88995.0,0.085]
[1740527459059,0.224678,89017.0,88995.0,0.08]
[1740527459302,0.168525,89008.0,88995.0,0.08]
[1740527460116,0.001,88996.0,88995.0,0.087]
[1740527460810,0.001,88996.0,88995.0,0.082]
[1740527461188,0.224672,89019.0,88995.0,0.18308885]
[1740527461424,0.168512,89014.0,88997.0,0.168544]
[1740527461589,0.224677,89017.0,88997.0,0.224726]
[1740527461787,0.224677,89017.0,88998.0,0.168541]
[1740527462001,0.00012527,89023.0,88997.0,0.168544]
[1740527462208,0.168512,89015.0,88998.0,0.168542]
[1740527462406,0.01166849,89015.0,88998.0,0.168542]
[1740527462655,0.168513,89014.0,88998.0,0.168542]
[1740527462837,0.168511,89015.0,88998.0,0.168542]
[1740527463040,0.006,89017.0,88999.0,0.224721]
[1740527463275,0.01794164,89017.0,88996.0,0.01454085]
[1740527463478,0.168513,89014.0,88997.0,0.168545]
[1740527464012,0.168511,89015.0,88998.0,0.168542]
[1740527464211,0.168511,89015.0,88999.0,0.0778]
[1740527464467,0.01044227,89014.0,88999.0,0.0778]
[1740527464672,0.01244227,89014.0,88999.0,0.0778]
[1740527464873,0.224709,89004.0,89000.0,0.01113155]
[1740527465215,0.168537,89001.0,89000.0,0.01113155]
[1740527465662,0.01044108,89001.0,89000.0,0.01113155]
[1740527466094,0.01044108,89001.0,89000.0,0.01513155]
[1740527466263,0.01044108,89001.0,89000.0,0.01313155]
[1740527466668,0.1998615,89001.0,89000.0,0.03097445]
[1740527467026,0.1998615,89001.0,89000.0,0.006]
[1740527467409,0.01194164,89017.0,89000.0,0.006]
[1740527467410,0.01194164,89017.0,89000.0,0.01512864]
[1740527467566,0.03341123,89001.0,89000.0,0.004]
[1740527467949,0.03341123,89001.0,88996.0,0.0016974]
[1740527468171,0.03341123,89001.0,89000.0,0.003]
[1740527468371,0.03341123,89001.0,89000.0,0.006]
[1740527468579,0.03341123,89001.0,89000.0,0.26617985]
[1740527468780,0.03341123,89001.0,89000.0,0.26317985]
[1740527468997,0.03341123,89001.0,89000.0,0.26517985]
[1740527469158,0.03341123,89001.0,89000.0,0.32833852]
[1740527469409,0.03341123,89020.0,89007.0,0.0802]
[1740527469765,0.03341123,89020.0,89012.0,0.168516]
[1740527469974,0.03341123,89020.0,89012.0,0.047]
[1740527470590,0.01165194,89021.0,89012.0,0.047]
[1740527470808,0.00012527,89023.0,89013.0,0.01275974]
[1740527471011,0.00012527,89023.0,89013.0,0.01175974]
[1740527472554,0.168498,89022.0,89013.0,0.01175974]
[1740527472852,0.00012527,89023.0,89013.0,0.01175974]
[1740527473090,0.01192718,89022.0,89013.0,0.01175974]
[1740527473291,0.00112527,89023.0,89015.0,0.0762]
[1740527473589,0.00112527,89023.0,89022.0,0.25923785]
[1740527473767,0.00112527,89023.0,89022.0,0.63283785]
[1740527474166,0.00012527,89023.0,89022.0,0.63283785]
[1740527474970,0.00112527,89023.0,89022.0,0.63983785]
[1740527475720,0.00012527,89023.0,89022.0,0.63283785]
[1740527475922,0.00012527,89023.0,89022.0,0.64683785]
[1740527477181,0.00012527,89023.0,89022.0,0.63983785]
[1740527477376,0.00012527,89023.0,89022.0,0.63283785]
[1740527477557,0.00112527,89023.0,89022.0,0.64683785]
[1740527477760,0.00112527,89023.0,89022.0,0.63983785]
[1740527477935,0.00112527,89023.0,89022.0,0.63283785]
[1740527478149,0.00297397,89023.0,89022.0,0.63983785]
[1740527478544,0.00297397,89023.0,89022.0,0.64683785]
[1740527479121,0.00297397,89023.0,89022.0,1.69718538]
[1740527479450,0.0008483,89045.0,89032.0,0.168478]
[1740527479654,0.0008483,89045.0,89032.0,1.58483833]
[1740527479863,0.0008483,89045.0,89032.0,1.69429079]
[1740527480070,0.0008483,89045.0,89036.0,0.1]
[1740527480264,0.0008483,89045.0,89036.0,0.82313108]
[1740527480469,0.0008483,89045.0,89036.0,0.8325778]
[1740527480738,0.0008483,89045.0,89036.0,0.8315778]
[1740527480906,0.2253687,89079.0,89036.0,0.8315778]
[1740527480907,0.25181057,89105.0,89044.0,0.0765]
[1740527481148,0.168397,89075.0,89057.0,0.0765]
[1740527481354,0.168395,89076.0,89058.0,0.33964085]
[1740527481527,0.00841701,89094.0,89058.0,0.33964085]
[1740527481528,0.168398,89075.0,89058.0,0.33964085]
[1740527481773,0.18926516,89074.0,89058.0,0.35060939]
[1740527482165,0.02086616,89074.0,89059.0,0.01454085]
[1740527482383,0.02086616,89074.0,89059.0,0.02550789]
[1740527482791,0.18926516,89074.0,89059.0,0.02550789]
[1740527482988,0.02086616,89074.0,89059.0,0.02550789]
[1740527483185,0.168405,89071.0,89059.0,0.02550789]
[1740527483379,0.18926716,89073.0,89059.0,0.01454085]
[1740527483557,0.01042112,89070.0,89060.0,0.01096555]
[1740527483895,0.01042112,89070.0,89062.0,0.16842]
[1740527484102,0.01042112,89070.0,89062.0,0.224562]
[1740527484306,0.01042112,89070.0,89064.0,0.168416]
[1740527484589,0.01054642,89070.0,89065.0,0.168414]
[1740527484798,0.03128728,89069.0,89065.0,0.01090114]
[1740527485467,0.03128728,89069.0,89059.0,0.01754085]
[1740527485687,0.03128728,89069.0,89066.0,0.01089964]
[1740527485931,0.03128728,89069.0,89060.0,0.01454085]
[1740527486151,0.02086616,89068.0,89067.0,0.01089814]
[1740527486371,0.03128728,89068.0,89062.0,0.003]
[1740527486588,0.03499025,89081.0,89067.0,0.01089814]
[1740527486818,0.168388,89080.0,89062.0,0.171421]
[1740527487023,0.01454085,89126.0,89068.0,0.01089665]
[1740527487024,0.01209554,89081.0,89068.0,0.01089665]
[1740527487144,0.00196458,89099.0,89065.0,0.004]
[1740527487370,0.0616,89098.0,89069.0,0.01089515]
[1740527487569,0.168406,89070.0,89069.0,0.01089515]
[1740527487823,0.0616,89080.0,89065.0,0.004]
[1740527487824,0.168414,89066.0,89065.0,0.004]
[1740527488027,0.168414,89066.0,89059.0,0.004]
[1740527488028,0.168415,89066.0,89059.0,0.004]
[1740527488224,0.0616,89080.0,89062.0,0.005]
[1740527488477,0.0616,89080.0,89051.0,0.3251]
[1740527488685,0.00196484,89085.0,89051.0,0.3251]
[1740527488686,0.168397,89075.0,89065.0,0.001]
[1740527488900,0.168401,89073.0,89065.0,0.001]
[1740527489106,0.168405,89071.0,89065.0,0.001]
[1740527489301,0.00196484,89081.0,89053.0,0.224584]
[1740527489472,0.168407,89070.0,89052.0,0.16844]
[1740527489676,0.168411,89068.0,89054.0,0.01091666]
[1740527489871,0.00196484,89084.0,89053.0,0.01091815]
[1740527490074,0.168413,89067.0,89055.0,0.01091516]
[1740527490295,0.168413,89067.0,89054.0,0.01091666]
[1740527490498,0.168414,89066.0,89065.0,0.003]
[1740527490650,0.168416,89065.0,89055.0,0.01091516]
[1740527490861,0.168415,89066.0,89051.0,0.3252253]
[1740527491074,0.168415,89066.0,89056.0,0.01091366]
[1740527491274,0.224504,89085.0,89054.0,0.004]
[1740527491275,0.224487,89092.0,89055.0,0.004]
[1740527491498,0.0008486,89069.0,89056.0,0.01091554]
[1740527491735,0.0008486,89069.0,89065.0,0.005]
[1740527491937,0.168411,89068.0,89065.0,0.005]
[1740527492281,0.0008486,89069.0,89065.0,0.005]
[1740527492491,0.168414,89066.0,89065.0,0.005]
[1740527492897,0.168417,89065.0,89051.0,0.3292253]
[1740527493098,0.168417,89065.0,89056.0,0.005]
[1740527493320,0.0008486,89069.0,89056.0,0.005]
[1740527493518,0.0008486,89069.0,89051.0,0.3292253]
[1740527493753,0.22455,89067.0,89065.0,0.005]
[1740527494177,0.22455,89067.0,89065.0,0.008]
[1740527494342,0.224552,89066.0,89065.0,0.008]
[1740527494516,0.224552,89066.0,89065.0,0.003]
[1740527495347,0.168431,89057.0,89056.0,0.005]
[1740527496155,0.224571,89059.0,89051.0,0.0001253]
[1740527496358,0.0008486,89069.0,89051.0,0.0001253]
[1740527496696,0.0008486,89069.0,89056.0,0.007]
[1740527497395,0.449094,89068.0,89065.0,0.004]
[1740527497555,0.168414,89066.0,89065.0,0.004]
[1740527497889,0.168437,89054.0,89051.0,0.0041253]
[1740527498097,0.168439,89053.0,89052.0,0.01327253]
[1740527498269,0.168438,89054.0,89052.0,0.01327253]
[1740527498477,0.168438,89054.0,89053.0,0.00965978]
[1740527499271,0.18931276,89054.0,89053.0,0.00965978]
[1740527499863,0.18931276,89054.0,89053.0,0.01665978]
[1740527500063,0.2012771,89054.0,89053.0,0.01665978]
[1740527500516,0.2012771,89054.0,89053.0,0.02365978]
[1740527501825,0.0328391,89054.0,89053.0,0.02365978]
[1740527502390,0.2012761,89054.0,89053.0,0.03458751]
[1740527502600,0.2012761,89054.0,89053.0,0.02365978]
[1740527502999,0.2012761,89054.0,89053.0,0.014]
[1740527503454,0.2012761,89054.0,89053.0,0.0156958]
[1740527503643,0.2012761,89054.0,89053.0,0.0086958]
[1740527504054,0.2012761,89054.0,89053.0,0.0106958]
[1740527504254,0.2012761,89054.0,89053.0,0.0036958]
[1740527504454,0.2012761,89054.0,89053.0,0.0046958]
[1740527504755,0.2012761,89054.0,89053.0,0.0066958]
[1740527507425,0.168437,89054.0,89053.0,0.0066958]
[1740527507875,0.17891024,89054.0,89053.0,0.0066958]
[1740527508409,0.19077293,89054.0,89053.0,0.0066958]
[1740527517588,0.19077293,89054.0,89053.0,0.0069308]
[1740527518187,0.19077293,89054.0,89053.0,0.0049308]
[1740527518693,0.19077293,89054.0,89053.0,0.0059308]
[1740527519042,0.19077293,89054.0,89053.0,0.0049308]
[1740527519445,0.19077293,89054.0,89053.0,0.0069308]
[1740527519826,0.19077293,89054.0,89053.0,0.0039308]
[1740527520519,0.18029969,89054.0,89053.0,0.0039308]
[1740527520727,0.18029969,89054.0,89053.0,0.0019308]
[1740527521027,0.18029969,89054.0,89053.0,0.0029308]
[1740527521757,0.18029969,89054.0,89053.0,0.0049308]
[1740527523655,0.18029969,89054.0,89053.0,0.0029308]
[1740527523824,0.18029969,89054.0,89053.0,0.0049308]
[1740527524730,0.0008481,89056.0,89053.0,0.0049308]
[1740527525167,0.168437,89054.0,89053.0,0.0049308]
[1740527525572,0.168437,89054.0,89053.0,0.0039308]
[1740527525891,0.18319108,89054.0,89053.0,0.0039308]
[1740527526698,0.18319108,89054.0,89053.0,0.0019308]
[1740527526874,0.18319108,89054.0,89053.0,0.0029308]
[1740527527080,0.18319108,89054.0,89053.0,0.0019308]
[1740527527478,0.18319108,89054.0,89053.0,0.0039308]
[1740527528404,0.18319108,89054.0,89053.0,0.0049308]
[1740527528832,0.18319108,89054.0,89053.0,0.0039308]
[1740527529189,0.18319108,89054.0,89053.0,0.0059308]
[1740527529592,0.0008481,89056.0,89053.0,0.0059308]
[1740527529593,0.0008481,89056.0,89053.0,0.2998698]
[1740527529820,0.0008481,89056.0,89054.0,0.08317196]
[1740527530065,0.168435,89055.0,89054.0,0.0931451]
[1740527530426,0.168435,89055.0,89054.0,0.0816]
[1740527530626,0.0008481,89056.0,89054.0,0.0931451]
[1740527530828,0.0008481,89056.0,89055.0,0.01411012]
[1740527531212,0.0008481,89056.0,89055.0,0.02565372]
[1740527533083,0.0008481,89056.0,89055.0,0.02865372]
[1740527533468,0.0008481,89056.0,89055.0,0.02565372]
[1740527533823,0.0008481,89056.0,89055.0,0.03065372]
[1740527534390,0.0008481,89056.0,89055.0,0.27598872]
[1740527534785,0.0008481,89056.0,89055.0,0.27998872]
[1740527535128,0.0008481,89056.0,89055.0,0.29452957]
[1740527535872,0.0008481,89056.0,89055.0,0.34092957]
[1740527539380,0.0008486,89069.0,89055.0,0.34092957]
[1740527539381,0.17958911,89083.0,89056.0,0.224577]
[1740527539587,0.168392,89078.0,89061.0,0.01454085]
[1740527539883,0.224512,89082.0,89063.0,0.082]
[1740527540044,0.0146787,89083.0,89063.0,0.082]
[1740527540248,0.168386,89081.0,89064.0,0.17993913]
[1740527540584,0.00839658,89095.0,89065.0,0.01411012]
[1740527540747,0.168393,89078.0,89065.0,0.02562976]
[1740527541162,0.01502422,89083.0,89065.0,0.02562976]
[1740527541342,0.168387,89081.0,89065.0,0.02562976]
[1740527541538,0.168391,89079.0,89066.0,0.01300829]
[1740527541756,0.168391,89079.0,89067.0,0.01151664]
[1740527542157,0.01490706,89083.0,89067.0,0.01151664]
[1740527542361,0.16841,89068.0,89067.0,0.01151664]
[1740527542564,0.16842,89063.0,89062.0,0.3251]
[1740527542766,0.18297122,89063.0,89062.0,0.3251]
[1740527543003,0.01455122,89063.0,89062.0,0.3251]
[1740527543319,0.168404,89072.0,89062.0,0.3251]
[1740527543464,0.0476,89080.0,89062.0,0.3251]
[1740527543664,0.224555,89065.0,89057.0,0.078]
[1740527543921,0.224547,89068.0,89051.0,0.0001253]
[1740527544123,0.224547,89068.0,89052.0,0.0751]
[1740527544322,0.16842,89063.0,89062.0,0.002]
[1740527544662,0.168424,89061.0,89054.0,0.01253561]
[1740527544864,0.168426,89060.0,89057.0,0.001]
[1740527545100,0.01503404,89063.0,89057.0,0.01006917]
[1740527545308,0.168413,89067.0,89057.0,0.01006917]
[1740527545507,0.00196503,89078.0,89057.0,0.01006917]
[1740527545707,0.168419,89064.0,89057.0,0.01006917]
[1740527546043,0.16842,89063.0,89057.0,0.01006917]
[1740527546254,0.16842,89063.0,89058.0,0.00872253]
[1740527546463,0.01494545,89064.0,89058.0,0.00872253]
[1740527546662,0.168427,89059.0,89058.0,0.00872253]
[1740527547916,0.168427,89059.0,89058.0,0.01172253]
[1740527548188,0.168427,89059.0,89058.0,0.01572253]
[1740527548409,0.168427,89059.0,89058.0,0.007]
[1740527549207,0.168427,89059.0,89058.0,0.003]
[1740527550285,0.1692754,89059.0,89058.0,0.003]
[1740527550694,0.168435,89055.0,89054.0,0.0016968]
[1740527552103,0.17040028,89055.0,89054.0,0.0016968]
[1740527552706,0.16844,89052.0,89051.0,0.0001253]
[1740527552915,0.16849,89026.0,89024.0,0.3251]
[1740527553163,0.2246,89048.0,89023.0,0.0819]
[1740527553393,0.224613,89043.0,89025.0,0.0115893]
[1740527553627,0.00196568,89042.0,89026.0,0.00934893]
[1740527553862,0.224638,89032.0,89026.0,0.00934893]
[1740527554089,0.224615,89041.0,89026.0,0.00934893]
[1740527554289,0.168477,89033.0,89026.0,0.00934893]
[1740527554516,0.168483,89030.0,89027.0,0.00962489]
[1740527554692,0.2246,89048.0,89027.0,0.00962489]
[1740527554870,0.27911366,89083.0,89027.0,0.00962489]
[1740527554871,0.00196568,89047.0,89027.0,0.00962489]
[1740527555053,0.00196568,89047.0,89028.0,0.00915249]
[1740527555275,0.168467,89039.0,89028.0,0.0207373]
[1740527555935,0.00992,89054.0,89028.0,0.0207373]
[1740527556071,0.002,89047.0,89028.0,0.0207373]
[1740527556273,0.00196568,89046.0,89029.0,0.01046373]
[1740527556684,0.168465,89039.0,89029.0,0.01046373]
[1740527556879,0.168472,89036.0,89029.0,0.01046373]
[1740527557284,0.168473,89035.0,89029.0,0.01046373]
[1740527557509,0.168476,89034.0,89029.0,0.01046373]
[1740527557910,0.224622,89039.0,89029.0,0.01046373]
[1740527557911,0.224621,89039.0,89029.0,0.01046373]
[1740527558713,0.168476,89034.0,89029.0,0.01046373]
[1740527558915,0.168477,89033.0,89029.0,0.01046373]
[1740527559132,0.168475,89034.0,89029.0,0.01246373]
[1740527559449,0.168475,89034.0,89030.0,0.00943637]
[1740527559901,0.168471,89036.0,89030.0,0.00943637]
[1740527560842,0.168471,89036.0,89030.0,0.01143637]
[1740527561251,0.168471,89036.0,89030.0,0.00943637]
[1740527561739,0.168471,89036.0,89030.0,0.01043637]
[1740527561939,0.224623,89038.0,89030.0,0.01513317]
[1740527562254,0.16847,89037.0,89030.0,0.01213317]
[1740527562437,0.16847,89037.0,89030.0,0.01413317]
[1740527562639,0.16847,89037.0,89030.0,0.01213317]
[1740527562839,0.00854581,89042.0,89030.0,0.01113317]
[1740527563083,0.16848,89031.0,89030.0,0.01213317]
[1740527563255,0.16848,89031.0,89030.0,0.0016968]
[1740527563660,0.16848,89031.0,89030.0,0.0036968]
[1740527563875,0.17044586,89031.0,89030.0,0.0036968]
[1740527564899,0.17044586,89031.0,89030.0,0.0046968]
[1740527565257,0.17044586,89031.0,89030.0,0.0086968]
[1740527565462,0.17044586,89031.0,89030.0,0.0046968]
[1740527565914,0.17044586,89031.0,89030.0,0.0056968]
[1740527566239,0.17044586,89031.0,89030.0,0.0026968]
[1740527569931,0.0469,89048.0,89030.0,0.0838968]
[1740527570156,0.224607,89045.0,89031.0,0.00838968]
[1740527570360,0.22471313,89052.0,89031.0,0.0199887]
[1740527570576,0.168462,89041.0,89031.0,0.0199887]
[1740527570733,0.00196556,89049.0,89031.0,0.0199887]
[1740527570734,0.224597,89048.0,89031.0,0.00838968]